bitfinex/quotes_ETHUSD_20220218
["timestamp","ask_amount","ask_price","bid_price","bid_amount"]
[1645186550865,1.17879252,2910.1,2909.0,3.5]
[1645186551166,0.02309912,2910.2,2908.9,1.11132841]
[1645186551414,1.7196,2910.0,2909.0,4.99608]
[1645186552219,0.00113722,2909.6,2909.0,4.99608]
[1645186552818,0.00113722,2909.6,2909.2,4.99608]
[1645186553019,0.00113722,2909.6,2909.3,3.5]
[1645186553222,0.8598,2909.7,2908.9,1.11132841]
[1645186553420,0.8598,2909.7,2909.5,4.99608]
[1645186553618,0.8598,2909.7,2909.3,4.99608]
[1645186553818,0.8598,2909.7,2909.1,4.99608]
[1645186554426,0.85992,2909.5,2908.8,4.99608]
[1645186554630,0.86253272,2909.5,2909.2,0.00252301]
[1645186555028,0.00252272,2909.5,2909.2,0.00252301]
[1645186555276,0.00252272,2909.5,2909.4,4.99608]
[1645186555476,0.00252272,2909.5,2909.2,4.99860301]
[1645186555679,0.01216096,2909.8,2909.2,4.99608]
[1645186555887,0.00252269,2909.6,2909.2,4.99860303]
[1645186556081,0.00252269,2909.6,2909.5,4.99608]
[1645186556580,0.00252269,2909.6,2909.4,4.99608]
[1645186556782,0.01216096,2909.8,2909.4,4.99608]
[1645186557182,0.00252264,2909.7,2909.2,5.02379311]
[1645186557782,0.00252264,2909.7,2909.2,0.02771311]
[1645186558083,1.857513,2909.7,2909.2,0.02519004]
[1645186558283,0.00252269,2909.6,2909.2,0.02771307]
[1645186558489,0.86243269,2909.6,2909.2,0.02771307]
[1645186558787,0.86243269,2909.6,2909.2,0.00261307]
[1645186559014,0.416,2909.5,2909.2,0.00261307]
[1645186559223,0.85991,2909.6,2909.2,1.1209467]
[1645186559614,0.85991,2909.6,2909.2,1.12346971]
[1645186559615,0.00252272,2909.5,2909.2,1.12346971]
[1645186559814,0.00252272,2909.5,2909.2,0.00261305]
[1645186560416,0.85994,2909.5,2909.2,9.004e-05]
[1645186560616,0.85994,2909.5,2909.2,0.00261303]
[1645186560617,0.8624627,2909.5,2909.2,0.00261303]
[1645186560821,1.90776301,2909.5,2909.2,0.00252299]
[1645186561023,4.04399301,2909.5,2909.2,0.00252299]
[1645186561215,1.72026,2909.4,2909.2,0.00252299]
[1645186561621,1.72026,2909.4,2908.7,4.99608]
[1645186561818,1.857976,2909.4,2908.7,4.99608]
[1645186562014,1.857976,2909.4,2908.4,3.5]
[1645186562015,1.857976,2909.4,2909.2,0.00252302]
[1645186562214,1.72026,2909.4,2909.2,0.00252302]
[1645186562865,1.72026,2909.4,2908.4,3.5]
[1645186562866,0.86002,2909.3,2908.4,3.5]
[1645186563063,0.86009,2909.1,2908.2,3.50207038]
[1645186563262,1.72023,2909.0,2908.2,0.00207038]
[1645186564271,0.86012,2908.9,2908.5,0.00252335]
[1645186564469,0.86015,2908.8,2908.5,0.00252335]
[1645186565172,0.86015,2908.8,2908.2,0.00207038]
[1645186565373,0.86016,2908.8,2907.9,3.5]
[1645186565575,0.86021,2908.6,2908.5,0.00252333]
[1645186566073,2.71836,2908.8,2908.5,0.00252333]
[1645186566074,0.86016,2908.8,2908.5,0.00252333]
[1645186566514,0.86016,2908.8,2908.1,0.88056991]
[1645186566715,0.86022,2908.6,2908.5,0.00252333]
[1645186567316,6.5,2908.5,2907.2,0.1719]
[1645186567515,1.27655,2908.4,2907.0,4.99608]
[1645186567713,0.8606,2907.9,2907.0,4.99608]
[1645186567914,0.416,2907.8,2907.0,4.99608]
[1645186568214,0.416,2907.8,2907.1,3.5]
[1645186568414,0.416,2907.8,2906.5,3.0896]
[1645186568415,2.13721,2907.8,2907.7,4.99608]
[1645186568617,0.416,2908.4,2907.3,4.99608]
[1645186569517,0.8603,2908.3,2907.6,1.02066658]
[1645186569716,0.8603,2908.3,2907.3,4.99608]
[1645186569918,0.86033,2908.2,2907.3,4.99608]
[1645186570161,0.86033,2908.2,2907.4,4.99608]
[1645186570367,0.86033,2908.2,2907.7,0.00138934]
[1645186570563,0.86036,2908.1,2907.7,0.00138934]
[1645186571063,1.72069,2908.1,2907.7,0.00138934]
[1645186571264,1.72069,2908.1,2907.4,4.99608]
[1645186571468,0.86033,2908.1,2907.8,0.00252097]
[1645186572467,1.79503395,2908.1,2907.4,4.99608]
[1645186572666,0.86038,2908.0,2907.8,0.00252095]
[1645186572867,1.72077,2908.0,2907.8,0.00252095]
[1645186573266,2.72077,2908.0,2907.8,0.00252095]
[1645186573666,2.72077,2908.0,2907.2,0.02614188]
[1645186573931,0.86058,2907.7,2907.2,4.188e-05]
[1645186574139,1.27658,2907.7,2907.2,4.188e-05]
[1645186574333,0.416,2907.7,2907.2,4.188e-05]
[1645186574533,1.416,2907.7,2907.2,4.188e-05]
[1645186574833,0.416,2907.7,2907.2,4.188e-05]
[1645186575035,2.58174,2907.6,2907.2,4.188e-05]
[1645186575236,0.98003386,2907.4,2907.3,0.00251842]
[1645186576035,0.98003386,2907.4,2906.7,4.99608]
[1645186576235,1.84056386,2907.4,2906.7,4.99608]
[1645186576438,1.84056386,2907.4,2906.3,3.33089997]
[1645186576439,0.8606,2907.3,2907.2,0.00251846]
[1645186576935,2.25656386,2907.4,2907.2,4.99859846]
[1645186576936,1.39603386,2907.4,2907.2,4.99859846]
[1645186577136,1.39603386,2907.4,2907.2,0.00251846]
[1645186577339,1.39603386,2907.4,2906.5,4.99608]
[1645186577538,2.25653386,2907.4,2907.2,0.00251849]
[1645186578470,3.11708386,2907.4,2906.6,4.99608]
[1645186578671,3.11708386,2907.4,2906.9,4.99608]
[1645186578672,3.97778386,2907.4,2906.9,4.99608]
[1645186578874,3.97778386,2907.4,2907.2,0.00251849]
[1645186578875,2.25653386,2907.4,2907.2,0.00251849]
[1645186579676,2.25653386,2907.4,2906.4,4.99608]
[1645186580076,2.25653386,2907.4,2907.2,0.00251849]
[1645186580077,3.11709386,2907.4,2907.2,0.00251849]
[1645186580478,2.25653386,2907.4,2907.2,0.00251849]
[1645186580676,1.39603386,2907.4,2907.2,0.00251849]
[1645186580875,1.39603386,2907.4,2906.8,4.99608]
[1645186581076,1.39603386,2907.4,2906.6,0.0549175]
[1645186581277,1.39603386,2907.4,2907.2,0.00251849]
[1645186582111,1.39603386,2907.4,2906.8,4.99608]
[1645186582311,1.39603386,2907.4,2907.0,4.99608]
[1645186582312,4.83892386,2907.4,2907.0,4.99608]
[1645186582514,2.25657386,2907.4,2907.2,0.00251849]
[1645186582711,2.25657386,2907.4,2906.6,0.00743599]
[1645186582911,0.86063,2907.3,2906.6,5.00351599]
[1645186583113,1.39603386,2907.4,2906.6,0.00743599]
[1645186583114,0.98003386,2907.4,2906.6,0.00743599]
[1645186583313,0.416,2907.6,2907.3,4.99608]
[1645186583915,0.416,2907.6,2906.8,4.99608]
[1645186584117,0.416,2907.6,2906.6,0.00743599]
[1645186584317,4.3027177,2908.2,2907.5,4.99608]
[1645186584318,1.07432028,2907.8,2907.5,4.99608]
[1645186584524,0.416,2908.4,2907.7,4.99608]
[1645186584718,2.1367,2908.4,2907.7,4.99608]
[1645186585158,1.72071,2908.2,2907.7,4.99608]
[1645186585363,1.07181414,2908.1,2907.7,4.99608]
[1645186585560,1.07181414,2908.1,2907.0,6.476]
[1645186585862,1.07181414,2908.1,2907.3,4.99608]
[1645186586058,1.07181414,2908.1,2907.3,5.05073915]
[1645186586258,1.72078,2908.0,2907.3,0.05465915]
[1645186586460,1.72078,2908.0,2907.3,5.05073915]
[1645186587859,1.72078,2908.0,2907.3,0.05465915]
[1645186588058,1.72078,2908.0,2907.3,5.05073915]
[1645186588261,0.86043,2907.8,2907.6,4.99608]
[1645186588662,0.86043,2907.8,2907.4,4.99608]
[1645186588918,1.7209,2907.8,2907.3,0.05465915]
[1645186589321,1.7209,2907.8,2907.4,4.99608]
[1645186589520,1.7209,2907.8,2907.3,0.05465915]
[1645186590122,1.7209,2907.8,2907.1,4.99859867]
[1645186590123,0.416,2907.7,2907.1,0.00251867]
[1645186590323,0.86068,2907.6,2907.1,0.00251867]
[1645186590622,0.86068,2907.6,2906.7,2.34589744]
[1645186590623,0.416,2907.5,2906.7,2.34589744]
[1645186590822,0.416,2907.5,2906.3,1.37469997]
[1645186591122,1.36253506,2907.5,2906.5,0.95955]
[1645186591324,0.86055,2907.4,2906.5,0.95955]
[1645186591538,0.86047,2907.7,2907.3,4.99608]
[1645186591723,0.01381741,2907.8,2907.2,4.99608]
[1645186591922,0.01381741,2907.8,2907.0,4.99608]
[1645186592325,0.87423741,2907.8,2907.0,0.89774384]
[1645186592522,0.01381741,2907.8,2907.0,0.89774384]
[1645186592766,0.01381741,2907.8,2907.7,4.99608]
[1645186593368,0.01381741,2907.8,2907.1,1.2444159]
[1645186593567,0.01381741,2907.8,2907.7,4.99608]
[1645186593766,0.01381741,2907.8,2907.3,4.99608]
[1645186594169,0.01381741,2907.8,2907.1,1.2419]
[1645186594371,0.01381741,2907.8,2907.4,4.99608]
[1645186594572,0.87422741,2907.8,2907.4,4.99608]
[1645186594975,0.86047,2907.6,2907.4,4.99608]
[1645186595171,0.86047,2907.6,2907.1,0.00251595]
[1645186595370,0.86047,2907.6,2907.2,4.99608]
[1645186595572,0.01381741,2907.8,2907.2,4.99608]
[1645186596172,2.78607798,2908.0,2907.2,4.99608]
[1645186596173,1.75344587,2907.6,2907.2,4.99608]
[1645186596418,0.03233587,2907.6,2907.2,4.99608]
[1645186596618,0.89284587,2907.6,2907.2,4.99608]
[1645186596822,0.03233587,2907.6,2907.2,4.99608]
[1645186598524,0.03233587,2907.6,2907.1,0.0025159]
[1645186598723,0.86056748,2907.5,2907.1,0.0025159]
[1645186598923,0.86056748,2907.5,2906.8,2.34555597]
[1645186599128,0.86054,2907.4,2907.2,4.99608]
[1645186599328,0.03233587,2907.6,2907.2,4.99608]
[1645186599728,0.03233587,2907.6,2907.1,0.00251588]
[1645186599929,0.03233587,2907.6,2907.5,4.99608]
[1645186600701,0.416,2907.7,2907.5,4.99608]
[1645186602304,0.416,2907.7,2907.3,0.04328981]
[1645186602703,1.27645,2907.7,2907.3,5.03936981]
[1645186604415,1.27645,2907.7,2907.3,0.04328981]
[1645186604817,1.27645,2907.7,2907.3,5.03936981]
[1645186605020,1.27645,2907.7,2907.3,0.04328981]
[1645186605416,2.99751,2907.7,2907.3,0.04328981]
[1645186606016,1.0,2907.6,2907.5,0.02142276]
[1645186606916,3.44209,2907.7,2907.5,0.02142276]
[1645186607118,0.86045,2907.7,2907.5,0.02142276]
[1645186607316,1.86045,2907.7,2907.5,0.02142276]
[1645186607764,2.27645,2907.7,2907.5,0.02142276]
[1645186608174,2.27645,2907.7,2907.5,0.01998993]
[1645186608175,2.57645,2907.7,2907.5,0.01998993]
[1645186609174,2.714232,2907.7,2907.5,0.01998993]
[1645186609375,6.57645,2907.7,2907.1,0.00251597]
[1645186609580,1.72153,2907.5,2907.1,0.00251597]
[1645186609773,1.72153,2907.5,2906.3,0.13819997]
[1645186609774,0.416,2907.4,2906.3,2.34555597]
[1645186609980,0.87820249,2906.8,2906.3,2.34555597]
[1645186610175,1.29420249,2906.8,2906.3,2.34555597]
[1645186610579,2.58272,2906.7,2906.3,2.34555597]
[1645186610783,1.27697,2906.6,2906.3,2.34555597]
[1645186610978,1.27697,2906.6,2906.0,4.99608]
[1645186610979,2.27697,2906.6,2906.0,4.99608]
[1645186611176,2.27697,2906.6,2905.4,7.34163597]
[1645186611419,2.57697,2906.6,2906.4,0.00236626]
[1645186611716,2.8,2906.4,2905.4,7.34163597]
[1645186611915,0.861071,2906.1,2905.5,1.46643891]
[1645186612118,1.72217,2906.0,2905.5,1.46643891]
[1645186612314,2.72217,2906.0,2905.5,1.46643891]
[1645186612916,3.56094777,2906.0,2905.4,4.99608]
[1645186613117,3.56094777,2906.0,2905.2,7.34163597]
[1645186613118,0.86113,2905.8,2905.2,7.34163597]
[1645186613323,0.86113,2905.8,2905.3,1.46652639]
[1645186613324,0.416,2905.7,2905.3,1.46652639]
[1645186613517,0.416,2905.7,2905.2,4.99608]
[1645186613716,0.416,2905.7,2904.7,1.3713]
[1645186613717,0.716,2905.7,2904.7,6.19548]
[1645186613927,0.716,2905.7,2904.6,2.51745597]
[1645186613928,1.016,2905.7,2904.6,2.51745597]
[1645186614125,1.05258772,2905.2,2904.7,1.46672349]
[1645186614325,1.05258772,2905.2,2904.6,2.34555597]
[1645186614326,1.27736,2905.1,2904.6,2.34555597]
[1645186614726,1.27736,2905.1,2904.1,5.16818]
[1645186614727,2.27736,2905.1,2904.1,5.16818]
[1645186615026,2.27736,2905.1,2903.6,2.20017191]
[1645186615027,2.27736,2905.1,2904.8,0.00251845]
[1645186615466,4.00013,2905.1,2904.8,0.00251845]
[1645186615665,4.00013,2905.1,2904.3,4.99608]
[1645186616065,0.86129,2904.9,2904.8,0.00251845]
[1645186617168,0.86135,2904.8,2904.7,0.0025185]
[1645186617571,0.86113,2905.2,2904.7,4.9985985]
[1645186617769,0.86113,2905.2,2905.0,4.99608]
[1645186618067,0.86113,2905.2,2904.7,0.0025185]
[1645186618267,1.72237,2905.2,2904.2,1.46685688]
[1645186618474,2.58386,2905.0,2904.2,1.46685688]
[1645186618668,0.86129,2904.9,2904.2,4.99608]
[1645186619120,0.86129,2904.9,2904.3,4.99608]
[1645186619518,0.86134,2904.8,2904.3,4.99608]
[1645186619721,0.86132,2904.7,2904.4,0.00251864]
[1645186619917,2.58395,2904.7,2904.4,0.00251864]
[1645186620417,0.86132,2904.7,2904.5,4.99608]
[1645186620619,1.72261,2904.7,2904.5,4.99608]
[1645186621422,1.72261,2904.7,2904.4,0.00251864]
[1645186621824,1.72261,2904.7,2904.6,4.99608]
[1645186622221,1.72261,2904.7,2904.4,0.00251864]
[1645186622963,1.72261,2904.7,2904.3,4.99608]
[1645186623365,1.72261,2904.7,2904.4,0.00251864]
[1645186624169,1.72261,2904.7,2904.6,4.99608]
[1645186624775,0.04888595,2904.8,2904.7,1.56459049]
[1645186626176,0.03217251,2904.8,2904.7,1.56459049]
[1645186627212,0.03087753,2904.8,2904.7,1.56459049]
[1645186627417,0.8609,2906.0,2905.3,1.09127761]
[1645186627616,1.7218,2906.3,2905.9,4.99608]
[1645186628119,1.7218,2906.3,2906.1,4.99608]
[1645186628519,0.86089,2906.2,2906.1,4.99608]
[1645186630163,0.86089,2906.2,2905.5,4.99608]
[1645186630366,1.72193,2906.1,2906.0,0.00251788]
[1645186631373,1.72193,2906.1,2905.7,4.99608]
[1645186631568,0.86092,2906.0,2905.7,4.99608]
[1645186631765,1.98294485,2906.0,2905.9,0.00251793]
[1645186632565,1.98294485,2906.0,2905.6,4.99608]
[1645186632969,1.98294485,2906.0,2905.8,0.00251797]
[1645186633267,0.86092,2906.0,2905.8,0.00251797]
[1645186633924,0.86097,2906.1,2905.9,4.99608]
[1645186634921,0.76093,2906.0,2905.7,4.99608]
[1645186635121,0.76093,2906.0,2905.9,4.99608]
[1645186635323,0.76093,2906.0,2905.9,0.00251795]
[1645186635924,0.861,2906.2,2905.9,0.00251795]
[1645186636124,0.861,2906.2,2905.9,0.02002486]
[1645186636324,1.859721,2906.2,2906.1,4.99608]
[1645186636922,1.859721,2906.2,2905.9,0.02002486]
[1645186637124,1.72187,2906.2,2905.9,5.01610486]
[1645186637325,0.42386,2906.3,2905.9,0.02002486]
[1645186637771,0.42386,2906.3,2906.0,4.99608]
[1645186638167,2.14576,2906.3,2906.2,4.99608]
[1645186638566,2.14576,2906.3,2906.0,4.99608]
[1645186638768,0.86089,2906.5,2905.9,1.05600904]
[1645186638769,0.86089,2906.5,2906.2,4.99608]
[1645186638976,0.86089,2906.5,2906.1,0.00251783]
[1645186639373,0.86089,2906.5,2906.3,4.99608]
[1645186639674,1.72168,2906.5,2906.1,0.00251783]
[1645186639875,1.72168,2906.5,2906.1,4.99608]
[1645186640074,0.998726,2906.5,2906.3,0.00251776]
[1645186640277,0.86089,2906.5,2906.3,0.00251776]
[1645186640973,0.86084,2906.4,2906.1,5.01898155]
[1645186641172,1.72176,2906.3,2906.1,5.01898155]
[1645186641818,3.44363,2906.3,2906.1,5.01898155]
[1645186642418,3.85963,2906.3,2906.1,0.02541941]
[1645186643420,3.85963,2906.3,2906.1,0.02290155]
[1645186643618,3.85963,2906.3,2906.1,0.02541941]
[1645186643819,3.997479,2906.3,2906.1,0.02541941]
[1645186644020,3.136519,2906.3,2906.1,0.02541941]
[1645186644331,1.0,2906.2,2906.1,0.02541941]
[1645186644721,2.99867,2906.3,2906.1,0.02290155]
[1645186644921,2.99867,2906.3,2906.1,0.02541941]
[1645186645764,2.99867,2906.3,2906.1,0.02290155]
[1645186646068,2.13776,2906.3,2906.1,0.02541941]
[1645186647065,2.13776,2906.3,2906.1,0.02290155]
[1645186647266,2.13776,2906.3,2906.1,0.02541941]
[1645186647468,1.72176,2906.3,2906.2,4.99608]
[1645186647869,1.72176,2906.3,2906.1,0.02541941]
[1645186648268,1.72176,2906.3,2906.1,0.02290155]
[1645186650222,1.72195,2906.6,2906.2,4.99608]
[1645186650223,0.86079,2906.6,2906.2,4.99608]
[1645186650619,0.86079,2906.6,2906.5,4.99608]
[1645186650822,0.416,2907.4,2906.5,4.99608]
[1645186651025,0.0045455,2907.6,2907.3,4.99608]
[1645186651221,0.0045455,2907.6,2907.5,4.99608]
[1645186651819,1.72086,2907.8,2907.5,4.99608]
[1645186652688,1.72086,2907.8,2907.7,4.99608]
[1645186653086,1.72086,2907.8,2907.5,4.99608]
[1645186653285,1.72086,2907.8,2907.3,4.99608]
[1645186653888,1.72086,2907.8,2907.0,4.43904758]
[1645186654097,1.72086,2907.8,2907.7,4.99608]
[1645186654593,0.86042,2907.8,2907.7,4.99608]
[1645186654800,0.86042,2907.8,2907.3,4.99608]
[1645186654994,0.86042,2907.8,2907.7,4.99608]
[1645186655196,0.01005625,2908.0,2907.7,4.99608]
[1645186655399,0.86032,2908.1,2907.7,4.99608]
[1645186655598,0.86032,2908.1,2907.1,1.2461]
[1645186655796,0.00251402,2908.2,2907.1,1.2461]
[1645186655997,0.03218438,2907.7,2907.2,3.5]
[1645186656196,0.03218438,2907.7,2907.1,1.2461]
[1645186656414,0.03218438,2907.7,2907.6,4.99608]
[1645186659625,0.03218438,2907.7,2907.6,4.99464138]
[1645186660032,0.03218438,2907.7,2907.1,1.2461]
[1645186660314,0.03218438,2907.7,2907.3,4.99464138]
[1645186660916,0.86048,2907.9,2907.6,0.02974973]
[1645186661117,0.416,2907.7,2907.6,0.02974973]
[1645186662921,0.416,2907.7,2907.6,4.973e-05]
[1645186663122,0.416,2907.7,2906.7,4.99464138]
[1645186663123,0.75979,2907.7,2906.7,4.99464138]
[1645186663319,0.75979,2907.7,2906.3,6.14475703]
[1645186663320,0.86077,2907.3,2906.3,6.14475703]
[1645186663619,0.416,2907.2,2906.3,6.14475703]
[1645186663818,0.416,2907.2,2906.3,6.14224138]
[1645186664242,1.16152401,2907.0,2906.3,6.1447567]
[1645186664439,0.416,2906.9,2906.3,4.9971567]
[1645186664640,0.416,2906.9,2906.5,4.99464138]
[1645186664836,0.416,2906.9,2906.3,4.9971567]
[1645186665035,0.416,2906.9,2906.3,4.99464138]
[1645186665435,0.416,2906.9,2906.3,4.99715666]
[1645186665436,0.86072,2906.8,2906.3,4.99715666]
[1645186665636,0.416,2906.7,2906.4,4.99464138]
[1645186666235,1.27676,2906.7,2906.4,4.99464138]
[1645186667038,1.27676,2906.7,2906.6,4.99464138]
[1645186667248,0.416,2906.7,2906.4,4.99464138]
[1645186667668,0.416,2907.1,2906.1,0.09918658]
[1645186667875,0.416,2907.1,2906.3,0.00251526]
[1645186668070,0.416,2907.1,2906.6,4.99464138]
[1645186668370,0.416,2907.1,2906.9,4.99464138]
[1645186668570,0.416,2907.1,2906.3,0.00251526]
[1645186668776,0.416,2907.1,2906.7,4.99464138]
[1645186668975,0.416,2907.1,2906.3,0.00251534]
[1645186669177,0.416,2907.1,2906.5,4.99464138]
[1645186669178,2.13728,2907.1,2906.5,4.99464138]
[1645186669776,2.13728,2907.1,2906.3,0.00251534]
[1645186669777,1.27664,2907.1,2906.3,0.00251534]
[1645186669976,1.27664,2907.1,2906.6,4.99464138]
[1645186670776,0.01914857,2906.7,2906.6,4.99464138]
[1645186674227,0.01914857,2906.7,2906.5,0.03294529]
[1645186674429,2.15682857,2906.7,2906.5,0.03294529]
[1645186675470,2.29464557,2906.7,2906.5,0.03294529]
[1645186675869,3.15682857,2906.7,2906.5,0.03294529]
[1645186676075,2.15682857,2906.7,2906.5,0.03294529]
[1645186676268,3.15682857,2906.7,2906.5,0.03294529]
[1645186677472,3.15682857,2906.7,2905.4,0.1719]
[1645186677473,0.86093,2906.3,2905.4,4.99464138]
[1645186677675,0.86115,2906.1,2904.9,0.1719]
[1645186677869,0.416,2906.0,2905.1,4.99464138]
[1645186678073,0.416,2906.0,2905.7,4.99464138]
[1645186678472,1.72228,2905.8,2905.4,4.99464138]
[1645186678922,2.58337,2905.8,2904.8,9.7466]
[1645186679127,0.416,2905.7,2904.9,2.34685763]
[1645186679525,0.8612,2905.6,2904.9,2.34685763]
[1645186679725,2.13873,2905.5,2904.9,2.34685763]
[1645186679927,3.0001,2905.5,2904.9,2.34685763]
[1645186680134,4.4227929,2905.5,2904.9,2.34685763]
[1645186680327,1.93386285,2905.4,2904.7,1.56459049]
[1645186680527,0.416,2905.3,2904.7,1.56459049]
[1645186680730,0.86139,2905.2,2904.7,1.56459049]
[1645186680932,0.416,2905.1,2904.7,1.56459049]
[1645186681128,1.27736,2905.1,2904.7,1.56459049]
[1645186681426,2.27736,2905.1,2904.7,1.56459049]
[1645186682226,2.27736,2905.1,2904.8,0.00251588]
[1645186682673,0.86136,2905.0,2904.8,0.00251588]
[1645186682876,0.416,2904.9,2904.8,0.00251588]
[1645186683078,0.416,2904.9,2904.7,1.56459049]
[1645186683486,0.416,2904.9,2904.8,0.00251588]
[1645186683876,1.27742,2904.9,2904.8,0.00251588]
[1645186684279,1.27742,2904.9,2904.7,1.56459049]
[1645186684579,1.27742,2904.9,2904.7,1.56710639]
[1645186684779,2.27742,2904.9,2904.7,1.56710639]
[1645186685181,0.416,2904.9,2904.8,4.99464138]
[1645186685881,0.416,2904.9,2904.7,1.56710641]
[1645186686719,0.416,2904.9,2904.7,1.56459049]
[1645186687119,0.416,2904.9,2904.7,1.56710641]
[1645186687320,1.415318,2904.9,2904.7,1.56710641]
[1645186687725,1.2774,2904.9,2904.7,1.56710641]
[1645186687920,1.2774,2904.9,2904.7,1.56459049]
[1645186688120,1.2774,2904.9,2904.7,1.56710641]
[1645186688524,0.416,2904.9,2904.7,1.56710641]
[1645186689133,0.416,2904.9,2904.7,1.56459049]
[1645186689328,0.416,2904.9,2904.7,1.56710641]
[1645186690373,0.416,2904.9,2904.7,1.56459049]
[1645186690577,0.416,2904.9,2904.7,1.56710641]
[1645186690978,1.0,2905.7,2904.7,1.56710641]
[1645186690979,8.61384,2906.6,2906.4,200.8754875]
[1645186691174,8.61384,2906.6,2906.4,187.41015433]
[1645186691380,12.56178596,2906.5,2906.4,187.41015433]
[1645186691573,32.75178596,2906.5,2906.4,180.78474224]
[1645186691775,32.75178596,2906.5,2906.4,171.08188799]
[1645186691974,33.05178596,2906.5,2906.4,165.91398799]
[1645186692174,33.35178596,2906.5,2906.4,165.91398799]
[1645186692374,35.42140745,2906.5,2906.4,160.74616799]
[1645186692576,26.80728745,2906.5,2906.4,155.57835799]
[1645186692773,26.80728745,2906.5,2906.4,150.41066799]
[1645186693177,23.36173765,2906.5,2906.4,150.41066799]
[1645186693378,1.416,2906.5,2906.4,145.24319799]
[1645186693777,0.416,2906.5,2906.4,145.24319799]
[1645186694036,0.416,2906.5,2906.4,150.23783937]
[1645186694429,0.86133,2906.6,2906.4,150.23783937]
[1645186694626,0.86133,2906.6,2906.4,145.24319799]
[1645186695228,1.27733,2906.6,2906.4,145.24319799]
[1645186695829,2.27733,2906.6,2906.4,145.24319799]
[1645186696030,0.0296855,2906.5,2906.4,145.24319799]
[1645186697527,0.4456855,2906.5,2906.4,145.24319799]
[1645186697972,0.7456855,2906.5,2906.4,145.24319799]
[1645186698173,0.4456855,2906.5,2906.4,145.24319799]
[1645186698374,0.7456855,2906.5,2906.4,145.24319799]
[1645186698987,0.4456855,2906.5,2906.4,145.24319799]
[1645186699184,0.8835555,2906.5,2906.4,145.24319799]
[1645186699388,0.7456855,2906.5,2906.4,145.24319799]
[1645186699780,0.4456855,2906.5,2906.4,145.24319799]
[1645186700785,0.4456855,2906.5,2906.3,0.02980594]
[1645186702126,0.4456855,2906.5,2906.3,5.02444732]
[1645186703120,0.5835435,2906.5,2906.3,5.02444732]
[1645186703320,0.4456855,2906.5,2906.3,5.02444732]
[1645186703520,0.4456855,2906.5,2906.3,0.02980594]
[1645186706068,0.4456855,2906.5,2906.1,0.03164051]
[1645186706268,0.4456855,2906.5,2906.2,0.00251525]
[1645186706269,0.86096,2906.4,2906.2,0.00251525]
[1645186706667,0.416,2906.3,2906.2,0.00251525]
[1645186706870,2.13809,2906.3,2906.2,0.00251525]
[1645186707273,3.13809,2906.3,2906.1,0.03164051]
[1645186707469,3.13809,2906.3,2906.1,0.03415575]
[1645186708468,3.13809,2906.3,2906.1,0.03164051]
[1645186708671,4.298868,2906.3,2906.1,0.03164051]
[1645186708919,4.298868,2906.3,2906.1,0.03415577]
[1645186709325,1.576778,2906.3,2906.1,0.03415577]
[1645186709520,1.576778,2906.3,2906.1,0.03164051]
[1645186709925,1.576778,2906.3,2906.1,0.03415577]
[1645186710224,1.576778,2906.3,2906.2,4.99464138]
[1645186710225,0.416,2906.3,2906.2,4.99464138]
[1645186710423,0.416,2906.3,2906.1,0.03415577]
[1645186710822,0.87885105,2906.2,2905.4,1.9661]
[1645186711034,0.87885105,2906.2,2906.1,0.00251526]
[1645186711223,0.43387105,2906.2,2906.1,0.00251526]
[1645186711923,0.43387105,2906.2,2905.3,1.2035]
[1645186712125,0.43387105,2906.2,2905.8,4.99464138]
[1645186712325,0.43387105,2906.2,2906.0,0.00251528]
[1645186713170,0.43387105,2906.2,2905.6,4.99464138]
[1645186713369,1.93710081,2906.1,2906.0,0.00232285]
[1645186713571,2.35310081,2906.1,2906.0,0.00232285]
[1645186714171,3.21418081,2906.1,2906.0,0.00232285]
[1645186714371,4.07523081,2906.1,2905.6,4.99464138]
[1645186714571,4.07523081,2906.1,2905.9,0.00233578]
[1645186715576,4.07523081,2906.1,2905.6,4.99464138]
[1645186715776,4.07523081,2906.1,2905.9,0.00233581]
[1645186716177,4.09308872,2906.1,2905.9,0.00233581]
[1645186716826,4.09308872,2906.1,2905.6,4.99464138]
[1645186717023,4.09308872,2906.1,2905.9,0.00233581]
[1645186717837,4.09308872,2906.1,2905.9,0.00103982]
[1645186718035,2.37095872,2906.1,2905.6,4.99464138]
[1645186718231,1.50994872,2906.1,2905.9,0.00233581]
[1645186719231,1.50994872,2906.1,2905.6,4.99464138]
[1645186719631,0.43385791,2906.1,2906.0,4.99464138]
[1645186720677,0.01785791,2906.1,2906.0,4.99464138]
[1645186720877,0.01785791,2906.1,2906.0,5.69494138]
[1645186721271,0.416,2906.8,2906.0,5.69494138]
[1645186721477,0.416,2906.8,2906.0,0.7003]
[1645186721879,0.86063,2907.3,2906.7,4.99464138]
[1645186722078,0.416,2907.5,2907.2,4.99464138]
[1645186722375,0.4176872,2908.4,2907.2,4.99464138]
[1645186722376,0.416,2907.9,2907.2,4.99464138]
[1645186722576,0.86045,2908.2,2906.9,3.3119]
[1645186722778,0.416,2908.3,2907.8,0.3773]
[1645186722984,0.8652972,2908.4,2908.1,4.99464138]
[1645186723176,0.8652972,2908.4,2908.0,0.4796]
[1645186723177,0.86041,2908.4,2908.0,0.4796]
[1645186723378,0.86041,2908.4,2908.3,4.99464138]
[1645186723379,2.58117,2908.4,2908.3,4.99464138]
[1645186723576,0.86035,2908.4,2908.3,4.99464138]
[1645186723778,0.86035,2908.4,2907.8,0.3773]
[1645186724030,0.86035,2908.4,2907.4,0.2962]
[1645186724233,0.0048872,2908.3,2907.4,0.2962]
[1645186724431,0.86041,2908.2,2907.4,0.2962]
[1645186724832,0.94188089,2908.0,2907.7,4.99464138]
[1645186725036,0.94188089,2908.0,2907.4,4.99464138]
[1645186725433,1.02895991,2908.0,2907.4,4.99464138]
[1645186725639,1.88941991,2908.0,2907.4,4.99464138]
[1645186725834,1.88941991,2908.0,2907.2,6.5154]
[1645186726036,1.88941991,2908.0,2907.6,4.99464138]
[1645186726234,0.86052,2907.8,2907.6,4.99464138]
[1645186726433,0.90032304,2907.8,2907.6,4.99464138]
[1645186727543,0.90032304,2907.8,2907.1,2.73493294]
[1645186727544,2.06087304,2907.8,2907.1,2.73493294]